bitfinex/quotes_ETHUSD_20250827
["timestamp","ask_amount","ask_price","bid_price","bid_amount"]
[1756325172737,0.02,4544.8,4543.5,2.2009464]
[1756325172931,0.02,4544.8,4544.6,2.20038536]
[1756325173179,0.02,4544.8,4543.6,0.00544888]
[1756325173180,0.02,4544.8,4543.2,0.792]
[1756325173497,0.02,4544.8,4543.3,0.00545088]
[1756325173638,0.02,4544.8,4544.6,2.2003776]
[1756325174378,0.02,4544.8,4544.1,2.20063007]
[1756325174560,0.02,4544.8,4543.3,0.00544597]
[1756325174739,0.02,4544.8,4543.0,0.00545021]
[1756325175135,0.4725,4544.7,4543.0,0.00545305]
[1756325175362,0.02750517,4544.6,4542.3,2.20152119]
[1756325175578,0.4725,4544.5,4542.1,0.00545305]
[1756325175757,0.02,4544.8,4542.9,1.69845578]
[1756325176071,0.02,4544.8,4543.0,0.792]
[1756325176275,0.02,4544.8,4543.2,2.20109174]
[1756325176574,2.20041367,4544.6,4542.8,0.02]
[1756325176737,0.48410577,4544.5,4542.8,0.02]
[1756325176943,3.0,4544.4,4542.8,0.02]
[1756325177139,5.17710698,4544.3,4542.8,0.02]
[1756325177338,0.02,4544.8,4542.9,2.20123709]
[1756325177657,0.02,4544.8,4542.8,0.02]
[1756325177658,1e-08,4545.8,4545.7,2.1998812]
[1756325177837,1e-08,4545.8,4545.7,4.70688001]
[1756325178037,1e-08,4545.8,4545.7,4.6848812]
[1756325178757,1e-08,4545.8,4545.7,6.1048812]
[1756325178961,1e-08,4545.8,4545.7,3.6198812]
[1756325179175,1e-08,4545.8,4545.7,4.43388001]
[1756325179365,1e-08,4545.8,4545.7,4.4118812]
[1756325179881,1e-08,4545.8,4545.7,3.6198812]
[1756325180247,1e-08,4545.8,4545.7,1.42]
[1756325180455,1e-08,4545.8,4545.7,2.1998812]
[1756325181148,1e-08,4545.8,4545.7,3.01388001]
[1756325181353,1e-08,4546.4,4545.9,0.792]
[1756325181676,1e-08,4546.4,4546.3,2.99159087]
[1756325181881,1e-08,4546.4,4546.3,8.44758677]
[1756325182049,1e-08,4546.4,4546.3,3.10119087]
[1756325182249,1e-08,4546.4,4546.3,2.30919087]
[1756325182454,1e-08,4546.4,4546.3,0.1096]
[1756325182678,0.45660001,4546.4,4546.3,0.1096]
[1756325182987,0.45660001,4546.4,4544.6,1.692]
[1756325183191,0.45660001,4546.4,4545.4,2.20001144]
[1756325183398,1e-08,4546.4,4546.3,2.19959087]
[1756325183553,0.02,4548.8,4546.3,2.19959087]
[1756325183554,0.02,4548.8,4546.3,4.68359087]
[1756325183752,0.4566,4551.0,4549.7,2.19794711]
[1756325183965,1e-08,4549.8,4549.7,2.98994711]
[1756325184186,1e-08,4549.8,4549.7,3.09954711]
[1756325184400,1e-08,4549.8,4549.7,3.12152658]
[1756325185103,1e-08,4549.8,4549.7,2.21992658]
[1756325185256,1e-08,4549.8,4549.7,2.19794711]
[1756325185459,1e-08,4549.8,4549.7,2.21992658]
[1756325185700,1e-08,4549.8,4549.7,2.98994711]
[1756325185858,1e-08,4549.8,4549.7,3.01192658]
[1756325186059,1e-08,4549.8,4549.7,10.11592658]
[1756325186258,1e-08,4549.8,4549.7,4.68194711]
[1756325186460,1e-08,4549.8,4549.7,3.88994711]
[1756325186796,1e-08,4549.8,4549.7,9.29494711]
[1756325187341,1e-08,4549.8,4549.7,3.88994711]
[1756325187659,1e-08,4549.8,4547.5,2.19896331]
[1756325187859,0.4566,4549.7,4548.0,7.10498768]
[1756325188061,0.4566,4549.7,4548.0,1.691]
[1756325188281,0.02205997,4549.6,4548.3,2.19860968]
[1756325188486,0.4566,4549.7,4548.4,2.19856384]
[1756325188691,0.4566,4549.7,4548.6,2.19843174]
[1756325188859,0.4566,4549.7,4548.7,0.0219843]
[1756325189056,1e-08,4549.8,4549.4,2.1980844]
[1756325189307,1e-08,4549.8,4549.4,2.19806257]
[1756325189456,1e-08,4549.8,4549.7,2.19794711]
[1756325189662,1e-08,4549.8,4549.7,3.01192658]
[1756325190093,1e-08,4549.8,4549.4,5.371]
[1756325190312,1e-08,4549.8,4549.7,2.19794711]
[1756325190896,1e-08,4549.8,4549.1,1.691]
[1756325191122,0.4566,4549.7,4548.8,0.02]
[1756325191863,0.4566,4549.7,4549.0,2.19828129]
[1756325192192,0.4566,4549.7,4548.8,0.02]
[1756325192365,2.19799556,4549.6,4548.8,0.02]
[1756325192566,2.19809205,4549.4,4548.8,0.02]
[1756325192765,2.19824301,4549.1,4548.8,0.02]
[1756325193090,0.4566,4549.0,4548.8,0.02]
[1756325193292,2.22039363,4548.9,4548.8,0.02]
[1756325193611,0.4566,4549.6,4548.8,0.02]
[1756325194259,4.71305997,4549.5,4548.1,2.19871319]
[1756325194459,5.19814037,4549.3,4548.0,2.19876717]
[1756325194694,0.4566,4549.2,4547.8,0.02198865]
[1756325194910,0.4566,4549.2,4547.8,2.22081995]
[1756325195094,1e-08,4549.8,4547.5,2.19897467]
[1756325195095,2.19848487,4548.6,4547.5,2.19897467]
[1756325195317,0.5662,4548.5,4547.8,0.1096]
[1756325195666,0.1096,4549.1,4548.4,0.1096]
[1756325195980,0.1096,4548.7,4548.1,0.1096]
[1756325196202,0.4566,4548.6,4547.7,2.19886692]
[1756325196379,0.4566,4548.6,4547.8,0.1096]
[1756325196709,0.4566,4548.6,4547.3,1.691]
[1756325196710,0.5662,4549.3,4548.5,0.1096]
[1756325196916,0.4566,4549.3,4548.9,0.1096]
[1756325197114,0.4566,4549.2,4548.9,0.1096]
[1756325197315,0.4566,4549.1,4548.6,0.1096]
[1756325197822,0.4566,4549.0,4547.4,6.985]
[1756325198001,2.30801703,4548.8,4547.4,6.985]
[1756325198314,0.1096,4548.8,4547.9,0.1096]
[1756325198622,0.4566,4549.7,4548.4,2.19856726]
[1756325198798,2.19803443,4549.6,4548.7,0.1096]
[1756325199178,0.5662,4549.7,4548.7,0.1096]
[1756325199412,2.19843032,4548.7,4547.8,0.004]
[1756325199611,0.1096,4548.4,4547.8,0.004]
[1756325199982,2.19877432,4548.0,4547.8,0.004]
[1756325200188,4.691,4548.9,4547.8,0.004]
[1756325200189,2.19881703,4547.9,4547.8,0.004]
[1756325200482,0.4566,4548.3,4547.8,0.004]
[1756325200696,2.65541703,4547.9,4547.8,0.004]
[1756325200910,0.4566,4547.9,4547.8,0.004]
[1756325201108,2.65541703,4547.9,4547.8,0.004]
[1756325201317,2.87972808,4547.9,4547.8,0.004]
[1756325201625,2.1990588,4547.4,4547.3,0.004]
[1756325201812,2.40130988,4547.4,4547.3,0.004]
[1756325202013,2.85790988,4547.4,4547.3,0.004]
[1756325202247,5.85790988,4547.4,4547.3,0.004]
[1756325204269,3.20225108,4547.4,4547.3,0.004]
[1756325204718,3.65885108,4547.4,4547.3,0.004]
[1756325205143,1.691,4548.0,4547.3,2.20310617]
[1756325205350,0.20263764,4547.9,4547.3,0.004]
[1756325205528,1.691,4548.8,4547.3,0.004]
[1756325205862,0.20264737,4548.7,4547.3,0.004]
[1756325206265,0.4566,4548.6,4547.3,2.20310433]
[1756325206416,0.20264737,4548.5,4547.3,2.20309859]
[1756325206621,0.20264737,4548.5,4547.4,2.19904294]
[1756325206841,0.20264737,4548.5,4547.3,2.20309774]
[1756325207050,3.20264737,4548.5,4547.4,2.19904307]
[1756325207235,0.20264737,4548.4,4547.3,0.004]
[1756325207443,2.40127103,4548.3,4547.4,2.19905843]
[1756325207640,0.20264737,4548.2,4547.3,0.004]
[1756325207959,0.20264737,4548.1,4547.7,2.1989014]
[1756325208129,0.20264737,4548.0,4547.5,1.691]
[1756325208334,2.19814037,4549.3,4548.0,2.19875591]
[1756325208529,0.22517998,4549.2,4547.3,0.004]
[1756325208734,5.40135702,4549.1,4547.3,0.004]
[1756325208955,2.19838199,4548.8,4547.3,0.004]
[1756325209253,0.22517998,4549.0,4547.3,0.004]
[1756325209254,2.19847865,4548.6,4547.3,0.004]
[1756325209421,3.0,4548.4,4547.3,0.004]
[1756325209622,2.19903002,4547.5,4547.3,0.004]
[1756325209830,0.20326807,4547.4,4547.3,0.004]
[1756325210021,0.4584,4547.4,4547.3,0.004]
[1756325210242,0.20326807,4547.4,4547.3,0.004]
[1756325210443,2.6574588,4547.4,4547.3,0.004]
[1756325210759,2.86072687,4547.4,4547.3,0.004]
[1756325211550,0.20326807,4547.4,4547.3,0.004]
[1756325211763,0.20326807,4547.4,4547.3,2.20310716]
[1756325211962,0.20326807,4547.9,4547.3,2.31270716]
[1756325212252,2.33024185,4548.4,4547.3,0.1136]
[1756325212253,0.20327417,4547.8,4547.3,0.1136]
[1756325212450,0.20327417,4547.7,4547.4,2.1990588]
[1756325212764,0.20327417,4547.6,4547.3,0.1136]
[1756325212961,0.20327417,4547.5,4547.3,0.004]
[1756325213327,0.20327417,4547.4,4547.3,0.004]
[1756325213555,0.20327417,4547.5,4547.3,0.004]
[1756325213728,0.20327417,4547.4,4547.3,0.004]
[1756325214150,2.19892475,4547.7,4547.3,0.004]
[1756325214327,0.4584,4547.4,4547.3,0.004]
[1756325214530,0.20327417,4547.4,4547.3,0.004]
[1756325215764,2.86073297,4547.4,4547.3,0.004]
[1756325215938,0.66167417,4547.4,4546.6,0.1096]
[1756325216143,0.66167417,4547.4,4545.8,0.02]
[1756325216144,2.19944835,4546.6,4545.8,0.02]
[1756325216350,0.20327417,4546.5,4545.8,0.02]
[1756325216689,0.20327417,4546.4,4545.9,0.81399784]
[1756325216892,0.20327417,4546.3,4545.8,0.02]
[1756325217040,0.02205997,4547.3,4545.8,0.02]
[1756325217041,0.20327417,4546.2,4545.8,0.02]
[1756325217243,0.20327417,4546.1,4545.8,0.02]
[1756325217442,0.20350623,4546.0,4545.8,0.02]
[1756325217671,0.20350732,4545.9,4545.8,0.02]
[1756325218471,0.66190732,4545.9,4545.8,0.02]
[1756325218885,0.66190732,4545.9,4545.8,0.024]
[1756325219455,0.66200203,4545.9,4545.8,0.024]
[1756325219857,0.20360203,4545.9,4545.8,0.024]
[1756325220263,3.0,4545.8,4544.8,0.02]
[1756325220572,2.35305966,4545.9,4544.8,0.02]
[1756325220573,2.20026843,4544.9,4544.8,0.02]
[1756325220768,0.22571963,4544.9,4544.8,0.02]
[1756325220982,0.20365966,4544.9,4544.8,0.02]
[1756325221564,0.20365966,4544.9,4544.8,2.22031684]
[1756325221774,0.4584,4546.2,4545.1,2.20014542]
[1756325222070,0.4584,4546.2,4544.8,2.22031684]
[1756325222071,0.77170151,4546.1,4545.2,0.02200123]
[1756325222293,0.20369613,4546.0,4545.2,2.20011404]
[1756325222501,0.20369613,4545.9,4545.3,0.02200074]
[1756325222792,0.20369613,4545.8,4545.7,2.1998812]
[1756325222948,0.4584,4547.7,4545.8,0.792]
[1756325223149,0.20372785,4547.6,4546.2,0.792]
[1756325223413,0.20372785,4547.5,4547.4,2.1990588]
[1756325223706,0.20372785,4548.5,4547.4,0.4398195]
[1756325223853,0.20382443,4548.4,4547.3,0.792]
[1756325224054,0.20382443,4548.3,4547.4,0.02199058]
[1756325224249,0.20382443,4548.2,4547.3,0.81399107]
[1756325224509,0.4594,4549.1,4547.3,0.81399107]
[1756325224510,0.001,4549.1,4548.5,2.99052698]
[1756325224793,1e-08,4549.1,4549.0,2.99028533]
[1756325224952,0.00100001,4549.8,4549.7,2.98994711]
[1756325225152,0.00100001,4549.8,4549.7,4.68094711]
[1756325225597,0.00100001,4549.8,4549.7,2.483]
[1756325225891,0.00100001,4549.8,4549.7,1.691]
[1756325226186,0.00100001,4549.8,4549.7,1.8006]
[1756325226607,0.00100001,4549.8,4549.7,1.82257947]
[1756325226771,0.00100001,4549.8,4549.7,1.8006]
[1756325227105,0.00100001,4549.8,4549.7,2.5926]
[1756325227305,0.00100001,4549.8,4549.7,3.23424249]
[1756325227620,0.00100001,4549.8,4549.7,3.35154249]
[1756325227973,0.00100001,4549.8,4549.7,5.4321896]
[1756325228196,0.00100001,4549.8,4549.7,10.46721013]
[1756325228470,0.00100001,4549.8,4549.7,7.6496]
[1756325228676,0.00100001,4549.8,4549.7,6.8576]
[1756325229077,0.00100001,4549.8,4549.7,7.6496]
[1756325229278,0.00100001,4549.8,4549.7,9.84754711]
[1756325229485,0.00100001,4549.8,4549.7,7.6496]
[1756325229689,0.00100001,4549.8,4549.7,6.8576]
[1756325230077,0.00100001,4549.8,4549.7,7.6496]
[1756325230277,0.00100001,4549.8,4549.7,6.8576]
[1756325230477,0.45940001,4549.8,4549.7,0.1096]
[1756325230687,0.72511903,4549.8,4549.7,0.1096]
[1756325230909,0.72511903,4549.8,4549.0,5.036]
[1756325231114,0.45940001,4549.8,4549.4,0.1096]
[1756325231286,0.4584,4549.7,4549.4,0.1096]
[1756325231490,0.00100001,4549.8,4549.1,0.792]
[1756325231812,0.00100001,4549.8,4549.6,0.1096]
[1756325232201,0.45940001,4549.8,4549.6,0.1096]
[1756325232404,0.4584,4549.7,4549.6,0.1096]
[1756325232606,0.4584,4549.7,4548.9,1.691]
[1756325232807,0.4584,4549.7,4549.2,0.1096]
[1756325233008,0.4584,4549.6,4549.2,0.1096]
[1756325233193,2.19825489,4549.1,4548.0,1.691]
[1756325233512,2.19813329,4549.4,4548.8,0.1096]
[1756325233681,2.19823066,4549.2,4548.1,5.011]
[1756325233888,0.4584,4549.5,4549.1,0.1096]
[1756325234215,2.19814148,4549.3,4549.1,0.1096]
[1756325234414,2.65658869,4549.2,4549.1,0.1096]
[1756325234614,2.19894077,4549.8,4548.1,5.001]
[1756325234818,2.19794711,4549.7,4549.2,0.1096]
[1756325234986,0.00100001,4549.8,4549.7,0.1096]
[1756325235387,2.65729881,4549.8,4549.7,0.1096]
[1756325235600,0.00100001,4549.8,4549.5,0.1096]
[1756325235804,2.19794896,4549.7,4549.5,0.1096]
[1756325236123,2.19814724,4549.3,4548.9,0.1096]
[1756325236290,0.568,4549.6,4548.9,0.1096]
[1756325236490,2.19819476,4549.2,4548.9,0.1096]
[1756325236719,2.19811234,4549.4,4548.9,0.1096]
[1756325236909,0.46935997,4549.3,4547.3,1.69]
[1756325237110,2.19847865,4548.6,4548.5,0.1096]
[1756325237309,2.19847865,4548.6,4547.3,1.69]
[1756325237310,0.4473,4548.6,4548.1,0.1096]
[1756325237510,2.198672,4548.2,4548.1,0.1096]
[1756325237820,0.93175473,4548.2,4547.7,0.1096]
[1756325238131,0.4473,4548.1,4547.7,0.1096]
[1756325238297,2.19886538,4547.8,4547.3,1.69]
[1756325238494,2.6462234,4547.7,4547.5,0.1096]
[1756325239021,0.1096,4548.4,4547.5,0.1096]
[1756325239022,2.1987642,4548.1,4547.5,0.1096]
[1756325239222,0.4473,4548.3,4547.5,0.1096]
[1756325239395,2.19896208,4547.6,4547.5,0.1096]
[1756325239724,2.19891207,4547.8,4547.5,0.1096]
[1756325240040,0.4473,4548.3,4547.5,0.1096]
[1756325240188,0.46935997,4548.2,4546.5,1.691]
[1756325240389,0.46935997,4548.2,4546.2,4.961]
[1756325240390,0.71409836,4548.1,4546.2,4.961]
[1756325240631,0.46935997,4548.0,4546.2,4.961]
[1756325240922,2.19922836,4547.1,4546.2,4.961]
[1756325241219,0.4473,4547.5,4546.2,4.961]
[1756325241444,2.1990588,4547.4,4546.2,7.16063268]
[1756325241849,1.691,4547.8,4546.3,0.8139959]
[1756325242055,2.19891373,4547.7,4546.4,2.77699907]
[1756325242266,0.4473,4548.0,4546.5,1.691]
[1756325242553,2.19907793,4547.4,4546.5,1.691]
[1756325242716,0.4473,4548.0,4546.7,0.792]
[1756325243052,2.19746168,4550.8,4546.8,0.792]
[1756325243053,2.1383,4548.5,4546.8,0.792]
[1756325243343,2.19780823,4550.0,4546.9,0.021993]
[1756325243344,2.19846862,4548.7,4546.9,0.021993]
[1756325243549,0.66828082,4549.7,4547.6,2.99093121]
[1756325243709,0.22098082,4549.7,4547.8,0.792]
[1756325243924,0.46935997,4549.6,4547.8,0.792]
[1756325244120,2.19836477,4548.9,4547.8,2.99085831]
[1756325244385,3.02205997,4549.4,4547.8,2.99085831]
[1756325244524,0.4473,4549.5,4547.9,0.02198817]
[1756325244724,0.001,4549.7,4548.3,2.19860436]
[1756325244936,2.19807047,4549.5,4548.1,0.0219872]
[1756325245151,2.19807047,4549.5,4547.8,0.792]
[1756325245152,0.02205997,4549.6,4547.9,0.02198817]
[1756325245351,0.4473,4549.4,4547.7,6.63]
[1756325245560,0.4473,4549.4,4548.5,2.19852175]
[1756325245843,0.001,4549.7,4548.6,0.02198478]
[1756325246337,2.19896791,4549.7,4548.5,2.99051549]
[1756325246540,0.001,4549.7,4548.4,1.691]
[1756325246740,2.19799542,4549.6,4548.4,1.691]
[1756325246929,0.4473,4549.5,4547.8,0.02198865]
[1756325247260,0.216136,4549.4,4547.8,0.02198865]
[1756325247459,0.46935997,4549.3,4547.7,1.691]
[1756325247650,0.4473,4549.3,4547.8,0.81398865]
[1756325247960,0.4483,4549.7,4547.8,0.81398865]
[1756325248272,0.001,4549.7,4548.1,2.19872034]
[1756325248469,0.001,4549.7,4548.8,0.792]
[1756325248645,0.001,4549.7,4549.6,2.19799542]
[1756325249229,0.001,4549.7,4549.6,2.98999542]
[1756325249430,0.001,4549.7,4549.6,3.10729542]
[1756325250169,0.001,4549.7,4549.6,3.09959542]
[1756325250340,0.001,4549.7,4549.6,4.12236203]
[1756325250662,0.001,4549.7,4549.6,4.23966203]
[1756325250864,0.001,4549.7,4549.6,4.12236203]
[1756325251064,0.001,4549.7,4549.6,4.23966203]
[1756325251643,1e-08,4549.7,4549.6,4.23966203]
[1756325252169,1e-08,4549.8,4549.7,2.98994711]
[1756325252356,1e-08,4549.8,4549.7,3.99499457]
[1756325252969,0.04,4551.8,4549.7,3.99499457]
[1756325252970,0.04,4551.8,4551.4,2.19708078]
[1756325253135,0.4873,4551.8,4551.2,2.19721976]
[1756325253335,0.4873,4551.8,4551.7,0.1096]
[1756325253569,0.4873,4551.8,4551.3,0.1096]
[1756325253767,0.4873,4551.8,4549.7,0.98306799]
[1756325253768,2.19707788,4551.5,4551.0,0.1096]
[1756325253932,5.30680505,4551.3,4550.4,0.1096]
[1756325254272,0.4473,4551.4,4550.2,2.19766112]
[1756325254483,0.4473,4551.4,4549.3,0.792]
[1756325254786,1.73,4551.8,4549.3,0.792]
[1756325254787,1.73,4551.8,4551.2,0.1096]
[1756325254982,0.04,4551.8,4551.2,0.1096]
[1756325255281,2.23693424,4551.8,4550.8,4.863]
[1756325255488,2.23693424,4551.8,4551.5,0.1096]
[1756325255489,2.86799958,4551.7,4551.5,0.1096]
[1756325255647,2.19702961,4551.6,4551.5,0.1096]
[1756325255965,2.19712398,4551.5,4551.3,0.1096]
[1756325256181,0.4473,4551.5,4551.3,0.1096]
[1756325256379,2.64442615,4551.4,4551.3,0.1096]
[1756325256743,0.4473,4551.4,4551.3,0.1096]
[1756325257762,0.041,4551.8,4551.7,2.98898134]
[1756325258073,0.041,4551.8,4551.7,5.30594928]
[1756325258239,0.041,4551.8,4551.7,1.7996]
[1756325258436,0.041,4551.8,4551.7,4.67898134]
[1756325258641,0.041,4551.8,4551.7,4.78858134]
[1756325259658,0.041,4551.8,4551.7,3.99658134]
[1756325259861,1e-08,4551.8,4551.7,4.70095115]
[1756325260174,1e-08,4551.8,4551.7,5.48608343]
[1756325260376,1e-08,4551.8,4551.7,5.36878343]
[1756325260676,1e-08,4551.8,4551.7,5.48608343]
[1756325261246,1e-08,4552.3,4552.2,2.19674003]
[1756325261445,1e-08,4552.3,4552.2,8.30006263]
[1756325261680,1e-08,4552.3,4552.2,8.27809523]
[1756325262039,1e-08,4552.8,4552.2,8.27809523]
[1756325262239,1e-08,4552.8,4552.7,2.98849878]
[1756325262470,1e-08,4552.8,4552.7,4.70046376]
[1756325262669,1e-08,4552.8,4552.7,5.36820223]
[1756325264695,0.44730001,4552.8,4551.5,1.689]
[1756325264849,0.4473,4552.7,4551.5,1.689]
[1756325265051,0.4473,4552.7,4551.6,0.02197029]
[1756325265355,1e-08,4552.8,4552.7,2.19649878]
[1756325265880,0.44730001,4552.8,4552.4,4.824]
[1756325266081,1e-08,4552.8,4552.7,2.19649878]
[1756325266579,0.45620001,4552.8,4552.4,4.824]
[1756325266758,0.4562,4552.7,4552.4,4.824]
[1756325266965,0.4562,4552.6,4551.4,4.811]
[1756325267274,0.4562,4552.6,4551.6,1.442]
[1756325267472,0.4562,4552.6,4551.7,0.02196981]
[1756325267952,0.4562,4552.6,4550.5,1.689]
[1756325268297,2.19670697,4552.3,4551.0,2.19731598]
[1756325268457,2.19670697,4552.3,4550.5,1.689]
[1756325268458,0.8903907,4552.2,4550.5,1.689]
[1756325268649,2.65302687,4552.1,4550.8,2.19741187]
[1756325268850,2.19688481,4551.9,4551.8,0.02]
[1756325269152,2.65308481,4551.9,4551.8,0.02]
[1756325269581,3.88564275,4552.5,4551.8,0.02]
[1756325269582,0.4562,4554.0,4552.7,2.19649878]
[1756325269784,0.4562,4554.0,4552.7,8.01514866]
[1756325269987,0.4562,4554.0,4552.7,8.12474866]
[1756325270683,0.4562,4554.0,4552.7,9.81374866]
[1756325271250,0.4562,4554.0,4552.7,9.80774866]
[1756325271981,0.4562,4554.0,4552.7,3.09809878]
[1756325272184,1.689,4554.3,4552.7,2.30609878]
[1756325272358,0.02,4554.8,4552.7,10.23636376]
[1756325272568,1e-08,4553.8,4553.6,0.792]
[1756325272762,1e-08,4553.8,4553.7,8.10178569]
[1756325272962,1e-08,4553.8,4553.7,8.18942553]
[1756325274788,1e-08,4553.8,4553.7,8.19042553]
[1756325275799,1e-08,4553.8,4553.7,2.30561642]
[1756325276599,1e-08,4553.8,4553.7,3.09761642]
[1756325276952,0.00100001,4553.8,4553.7,3.09761642]
[1756325277158,0.00100001,4553.8,4553.7,2.30561642]
[1756325277778,0.45720001,4553.8,4553.7,0.1096]
[1756325277956,0.45720001,4553.8,4553.7,2.30561642]
[1756325278156,0.45720001,4553.8,4553.7,0.1096]
[1756325278766,0.45720001,4553.8,4553.7,2.30561642]
[1756325279055,0.45720001,4553.8,4553.7,0.1096]
[1756325279369,0.45720001,4553.8,4553.7,2.30561642]
[1756325279710,0.00100001,4553.8,4553.7,2.30561642]
[1756325279860,0.45720001,4553.8,4553.7,2.30561642]
[1756325280304,0.45720001,4553.8,4552.8,0.02]
[1756325280517,0.02205997,4553.7,4552.8,0.02]
[1756325280799,0.1096,4552.9,4552.2,0.004]
[1756325280968,0.4562,4552.8,4552.7,2.19649878]
[1756325281300,0.1096,4553.5,4553.0,2.19635405]
[1756325281591,0.1096,4553.5,4552.7,0.1096]
[1756325281801,0.4562,4553.4,4552.8,2.19645053]
[1756325281957,0.4562,4553.4,4552.7,0.1096]
[1756325282158,0.4562,4553.4,4552.8,2.19645053]
[1756325282503,0.4562,4553.4,4552.9,0.02196402]
[1756325282657,0.07,4553.6,4553.2,0.1096]
[1756325282857,0.4562,4553.5,4553.2,0.1096]
[1756325283168,0.4562,4553.4,4552.4,0.02196643]
[1756325283357,0.07100001,4553.8,4553.4,0.1096]
[1756325283558,0.07100001,4553.8,4553.7,2.19601642]
[1756325283865,0.07100001,4553.8,4553.7,3.11957658]
[1756325284072,0.001,4554.3,4554.2,2.98777532]
[1756325287103,1e-08,4554.3,4554.2,2.98777532]
[1756325287308,1e-08,4554.3,4554.2,3.23867532]
[1756325287614,1e-08,4554.8,4554.3,0.792]
[1756325287818,0.001,4556.3,4555.8,0.792]
[1756325288028,0.001,4556.3,4556.2,2.98681146]
[1756325288321,0.001,4556.3,4556.2,7.71675957]
[1756325288523,0.001,4556.3,4556.2,7.69481146]
[1756325288925,1e-08,4556.3,4556.2,7.69481146]
[1756325289252,0.04,4557.8,4556.2,7.69481146]
[1756325289253,1e-08,4556.8,4556.7,5.98657063]
[1756325289539,1e-08,4556.8,4556.7,11.50469228]
[1756325289834,1e-08,4556.8,4556.7,11.75559228]
[1756325290139,1e-08,4556.8,4556.7,3.80469228]
[1756325290317,1e-08,4556.8,4556.7,3.82663798]
[1756325290521,0.45620001,4556.8,4554.9,3.0]
[1756325290830,0.45620001,4556.8,4556.1,2.19482855]
[1756325291058,0.45620001,4556.8,4556.0,4.694]
[1756325291337,0.45620001,4556.8,4556.5,2.19466588]
[1756325291533,0.45620001,4556.8,4556.6,2.19461879]
[1756325291690,1e-08,4556.8,4556.7,2.98657063]
[1756325291892,0.45620001,4556.8,4556.1,3.06845679]
[1756325292124,0.45620001,4556.8,4556.1,4.687]
[1756325292125,1e-08,4556.8,4556.1,4.687]
[1756325292307,1e-08,4556.8,4555.8,2.19498883]
[1756325292308,0.4562,4556.7,4555.8,2.19498883]
[1756325292508,0.4562,4556.7,4555.5,4.687]
[1756325292690,0.4562,4556.7,4556.1,2.19485693]
[1756325292894,1e-08,4556.8,4555.5,4.687]
[1756325293089,0.4562,4556.7,4555.7,2.19505235]
[1756325293326,0.4562,4556.7,4555.3,0.792]
[1756325293491,0.47825997,4556.6,4555.1,1.688]
[1756325293697,0.4562,4556.5,4555.2,0.02195293]
[1756325293957,0.4562,4556.5,4555.1,3.311]
[1756325294093,2.30426698,4556.5,4555.8,0.1296]
[1756325294430,0.02205998,4556.8,4555.8,0.02]
[1756325294431,0.1096,4556.0,4555.8,0.02]
[1756325294589,4.36123186,4555.9,4554.8,0.02]
[1756325294937,5.2538,4555.9,4555.0,2.19535495]
[1756325295150,4.4487643,4555.9,4555.3,0.1096]
[1756325295490,2.2538,4555.9,4555.3,0.1096]
[1756325295713,0.4448716,4555.8,4555.3,0.1096]
[1756325295915,0.4562,4555.7,4555.3,2.30483534]
[1756325296123,0.4448716,4555.8,4555.3,0.1096]
[1756325296439,0.4562,4555.6,4555.3,0.1096]
[1756325296834,0.4544,4555.5,4555.3,0.1096]
[1756325297033,0.4544,4555.5,4555.3,2.30484005]
[1756325297201,0.4544,4555.4,4555.3,0.1096]
[1756325297541,0.4544,4555.4,4554.9,2.30503393]
[1756325297706,0.4544,4555.3,4554.9,0.1096]
[1756325297897,0.4544,4555.3,4554.9,2.30502383]
[1756325298109,0.4544,4555.2,4554.9,2.30503392]
[1756325298298,0.1096,4555.6,4554.9,0.1096]
[1756325298493,3.0,4555.4,4554.8,0.02]
[1756325298713,0.1096,4554.9,4554.8,0.02]
[1756325299098,0.564,4554.9,4554.8,0.02]
[1756325299529,0.4544,4554.9,4554.8,0.02]
[1756325300009,1.688,4555.7,4554.8,0.02]
[1756325300010,0.1096,4555.5,4554.9,2.19539853]
[1756325300214,0.2252,4555.4,4555.1,2.19534138]
[1756325300411,0.6796,4555.4,4554.8,2.32507747]
[1756325300722,0.6796,4555.4,4555.0,2.19536921]
[1756325300930,0.4544,4555.4,4554.8,0.02]
[1756325301227,0.4544,4556.1,4555.3,2.30484346]
[1756325301403,0.4544,4556.1,4555.5,2.19514177]
[1756325301610,0.4544,4556.1,4555.4,2.19519483]
[1756325301806,0.4544,4556.1,4556.0,2.19490781]
[1756325302030,0.4544,4556.1,4555.9,0.1096]
[1756325302327,1.7976,4556.5,4556.2,2.19480817]
[1756325302496,3.47645997,4556.4,4555.9,0.1096]
[1756325302697,2.19505238,4555.7,4554.8,2.21547897]
[1756325302910,3.47645997,4556.4,4554.8,0.1296]
[1756325302911,0.1096,4555.4,4554.8,0.1296]
[1756325303112,0.1096,4555.4,4555.0,2.19534705]
[1756325303311,0.4544,4555.3,4554.8,0.02]
[1756325303538,0.1096,4555.0,4554.8,0.02]
[1756325303843,0.02205997,4554.9,4554.8,0.02]
[1756325304011,0.47645997,4554.9,4554.8,0.02]
[1756325304213,0.4544,4554.9,4554.8,0.02]
[1756325304727,0.1096,4555.0,4554.8,0.02]
[1756325305238,0.1096,4555.0,4554.8,2.21548322]
[1756325305425,0.1096,4555.5,4555.0,2.19536261]
[1756325305609,0.1096,4555.5,4555.1,2.21728754]
[1756325305810,0.1096,4555.5,4555.2,2.19529329]
[1756325306023,0.1096,4555.5,4555.0,2.19534718]
[1756325306240,0.4544,4555.4,4555.1,2.19530426]
[1756325306463,0.1096,4555.5,4555.1,2.19530497]
[1756325306653,0.1096,4555.5,4554.9,0.1096]
[1756325306948,0.4544,4555.4,4554.9,0.1096]
[1756325307109,0.73031173,4555.4,4554.9,0.1096]
[1756325307308,0.4544,4555.3,4554.8,0.02]
[1756325307504,5.19538968,4555.0,4554.8,0.02]